[Event "Belt and Road Women 2024"]
[Site "Yuecheng Shaoxing"]
[Date "2024.07.31"]
[Round "7.12"]
[White "Chen, Yining"]
[Black "Bai, Xue"]
[Result "1-0"]
[ECO "D53"]
[WhiteElo "2300"]
[BlackElo "2114"]
[Annotator "RC"]
[PlyCount "61"]
[EventDate "2024.08.01"]
[EventType "swiss"]
[EventCountry "CHN"]
[SourceTitle "playchess.com"]
[Source "ChessBase"]
[SourceQuality "1"]
[TimeControl "5400+30"]

1. d4 {[%emt 0:00:03]} Nf6 {[%emt 0:00:06]} 2. c4 {[%emt 0:00:13]} e6 {[%emt 0:00:06]} 3. Nf3 {[%emt 0:00:36]} d5 {[%emt 0:00:06]} 4. Nc3 {[%emt 0:00:12]} Be7 {[%emt 0:00:08]} 5. Qc2 {[%emt 0:00:43]} O-O {[%emt 0:01:28]} 6. Bg5 {[%emt 0:00:13]} h6 {[%emt 0:03:16]} 7. Bxf6 {[%emt 0:01:00]} Bxf6 {[%emt 0:00:07]} 8. O-O-O {[%emt 0:00:26]} b6 {[%emt 0:07:05]} 9. e4 {[%emt 0:00:28]} dxc4 {[%emt 0:03:39]} 10. Bxc4 {[%emt 0:00:54]} Ba6 {[%emt 0:08:18]} 11. Bxa6 {[%emt 0:12:57]} Nxa6 {[%emt 0:00:05]} 12. h4 {[%emt 0:00:44]} Be7 {[%emt 0:19:51]} 13. g4 {[%emt 0:09:58]} c5 {[%emt 0:02:54]} 14. Qa4 {[%emt 0:08:41]} Qc8 {[%emt 0:02:19]} 15. d5 {[%emt 0:05:14]} exd5 {[%emt 0:01:04]} 16. Nxd5 {[%emt 0:02:22]} Re8 {[%emt 0:03:10]} 17. g5 {[%emt 0:19:52]} h5 {[%emt 0:09:02]} 18. g6 {[%emt 0:02:29]} fxg6 {[%emt 0:07:17]} 19. Qc4 {[%emt 0:03:37]} Kh8 {[%emt 0:01:08]} 20. Ne5 {[%emt 0:08:52]} Kh7 {[%emt 0:08:15]} 21. Rhg1 {[%emt 0:01:57]} b5 {[%emt 0:01:50]} 22. Qe2 {[%emt 0:01:27]} Bd6 {[%emt 0:05:19]} 23. Nxg6 {[%emt 0:03:00]} Qe6 {[%emt 0:02:19]} 24. Qxh5+ {[%emt 0:00:45]} Kg8 {[%emt 0:00:05]} 25. Nge7+ {[%emt 0:05:52]} Rxe7 {[%emt 0:01:03]} 26. Nxe7+ {[%emt 0:00:09]} Bxe7 {[%emt 0:05:32]} 27. Rxg7+ {[%emt 0:00:55]} Kxg7 {[%emt 0:00:06]} 28. Rg1+ {[%emt 0:00:03]} Kf8 {[%emt 0:02:12]} 29. Qh8+ {[%emt 0:00:11]} Kf7 {[%emt 0:00:11]} 30. Rg7+ {[%emt 0:00:13]} Kf6 {[%emt 0:00:17]} 31. Rg8+ {[%emt 0:00:16]} 1-0

[Event "Belt and Road Women 2024"]
[Site "Yuecheng Shaoxing"]
[Date "2024.07.31"]
[Round "7.13"]
[White "Ha, Yihan"]
[Black "Wang, Yu A."]
[Result "1-0"]
[ECO "E11"]
[WhiteElo "2166"]
[BlackElo "2234"]
[Annotator "RC"]
[PlyCount "105"]
[EventDate "2024.08.01"]
[EventType "swiss"]
[EventCountry "CHN"]
[SourceTitle "playchess.com"]
[Source "ChessBase"]
[SourceQuality "1"]
[TimeControl "5400+30"]

1. d4 {[%emt 0:00:03]} e6 {[%emt 0:00:01]} 2. c4 {[%emt 0:00:07]} Bb4+ {[%emt 0:00:04]} 3. Bd2 {[%emt 0:01:12]} a5 {[%emt 0:00:09]} 4. Nf3 {[%emt 0:03:19]} Nf6 {[%emt 0:00:29]} 5. a3 {[%emt 0:01:32]} Bxd2+ {[%emt 0:00:47]} 6. Qxd2 {[%emt 0:03:11]} d5 {[%emt 0:03:41]} 7. e3 {[%emt 0:01:33]} O-O {[%emt 0:00:40]} 8. Nc3 {[%emt 0:01:07]} Qe7 {[%emt 0:00:52]} 9. Rc1 {[%emt 0:05:38]} b6 {[%emt 0:08:25]} 10. cxd5 {[%emt 0:02:33]} exd5 {[%emt 0:00:25]} 11. Bd3 {[%emt 0:01:35]} c5 {[%emt 0:06:16]} 12. dxc5 {[%emt 0:06:35]} bxc5 {[%emt 0:00:03]} 13. O-O {[%emt 0:01:23]} Bb7 {[%emt 0:05:24]} 14. Rfe1 {[%emt 0:04:26]} Nbd7 {[%emt 0:06:07]} 15. Bb1 {[%emt 0:09:03]} Rfd8 {[%emt 0:04:30]} 16. Qc2 {[%emt 0:03:43]} g6 {[%emt 0:09:09]} 17. h3 {[%emt 0:01:08]} Rac8 {[%emt 0:15:16]} 18. Qa4 {[%emt 0:01:52]} Bc6 {[%emt 0:09:23]} 19. Qxa5 {[%emt 0:05:48]} Qd6 {[%emt 0:12:32]} 20. Nb5 {[%emt 0:04:44]} Bxb5 {[%emt 0:00:01]} 21. Qxb5 {[%emt 0:00:09]} c4 {[%emt 0:00:17]} 22. Nd4 {[%emt 0:02:07]} Nc5 {[%emt 0:00:22]} 23. Qb4 {[%emt 0:01:09]} Rb8 {[%emt 0:02:17]} 24. Qd2 {[%emt 0:02:33]} Na4 {[%emt 0:02:34]} 25. b4 {[%emt 0:04:26]} Ra8 {[%emt 0:05:25]} 26. Nb5 {[%emt 0:04:12]} Qb6 {[%emt 0:03:25]} 27. Qd4 {[%emt 0:01:46]} Qxb5 {[%emt 0:00:34]} 28. Qxf6 {[%emt 0:00:06]} Rdc8 {[%emt 0:01:21]} 29. e4 {[%emt 0:03:04]} d4 {[%emt 0:00:54]} 30. Qxd4 {[%emt 0:01:19]} Nb6 {[%emt 0:00:01]} 31. Re3 {[%emt 0:02:09]} Rd8 {[%emt 0:00:16]} 32. Qf6 {[%emt 0:00:52]} Rd2 {[%emt 0:00:56]} 33. Rf3 {[%emt 0:00:25]} Ra7 {[%emt 0:00:19]} 34. e5 {[%emt 0:02:13]} Nd5 {[%emt 0:00:34]} 35. Qg5 {[%emt 0:06:01]} c3 {[%emt 0:00:45]} 36. e6 {[%emt 0:00:58]} Qe2 {[%emt 0:02:47]} 37. Kh2 {[%emt 0:09:00]} Qxe6 {[%emt 0:00:40]} 38. Rfxc3 {[%emt 0:01:10]} Rxf2 {[%emt 0:00:48]} 39. Rc6 {[%emt 0:01:03]} Qd7 {[%emt 0:00:55]} 40. Rc8+ {[%emt 0:00:55]} Kg7 {[%emt 0:00:02]} 41. Rd8 {[%emt 0:00:25]} Qe7 {[%emt 0:00:50]} 42. Qxd5 {[%emt 0:00:39]} Rxa3 {[%emt 0:00:13]} 43. Qd4+ {[%emt 0:01:10]} Kh6 {[%emt 0:01:13]} 44. Qxf2 {[%emt 0:00:45]} Qxd8 {[%emt 0:00:45]} 45. Rc4 {[%emt 0:00:31]} Ra1 {[%emt 0:01:25]} 46. Qh4+ {[%emt 0:01:44]} Qxh4 {[%emt 0:00:00]} 47. Rxh4+ {[%emt 0:00:04]} Kg5 {[%emt 0:00:24]} 48. Rg4+ {[%emt 0:00:03]} Kf6 {[%emt 0:00:04]} 49. Bd3 {[%emt 0:00:39]} Ra3 {[%emt 0:01:13]} 50. Bf1 {[%emt 0:00:10]} h5 {[%emt 0:00:00]} 51. Rf4+ {[%emt 0:00:14]} Ke7 {[%emt 0:00:00]} 52. b5 {[%emt 0:00:33]} f5 {[%emt 0:00:00]} 53. Rb4 {[%emt 0:00:35]} 1-0

[Event "Belt and Road Women 2024"]
[Site "Yuecheng Shaoxing"]
[Date "2024.07.31"]
[Round "7.14"]
[White "Soumya, Swaminathan"]
[Black "Gu, Xiaobing"]
[Result "0-1"]
[ECO "B90"]
[WhiteElo "2258"]
[BlackElo "2135"]
[Annotator "RC"]
[PlyCount "82"]
[EventDate "2024.08.01"]
[EventType "swiss"]
[EventCountry "CHN"]
[SourceTitle "playchess.com"]
[Source "ChessBase"]
[SourceQuality "1"]
[TimeControl "5400+30"]

1. e4 {[%emt 0:00:04]} c5 {[%emt 0:01:02]} 2. Nf3 {[%emt 0:00:05]} d6 {[%emt 0:00:07]} 3. d4 {[%emt 0:00:05]} cxd4 {[%emt 0:00:05]} 4. Nxd4 {[%emt 0:00:04]} Nf6 {[%emt 0:00:08]} 5. Nc3 {[%emt 0:00:04]} a6 {[%emt 0:00:04]} 6. h3 {[%emt 0:00:08]} e5 {[%emt 0:00:32]} 7. Nf3 {[%emt 0:00:06]} Be7 {[%emt 0:01:54]} 8. g4 {[%emt 0:00:12]} h6 {[%emt 0:00:25]} 9. Rg1 {[%emt 0:00:40]} Nbd7 {[%emt 0:00:48]} 10. g5 {[%emt 0:01:26]} hxg5 {[%emt 0:01:52]} 11. Nxg5 {[%emt 0:00:43]} Qc7 {[%emt 0:18:39]} 12. a4 {[%emt 0:15:34]} Nf8 {[%emt 0:01:44]} 13. Qf3 {[%emt 0:21:33]} Bd8 {[%emt 0:03:44]} 14. b3 {[%emt 0:05:07]} Be6 {[%emt 0:20:12]} 15. Bb2 {[%emt 0:17:41]} Rc8 {[%emt 0:04:22]} 16. O-O-O {[%emt 0:06:13]} Qc5 {[%emt 0:05:01]} 17. Qe2 {[%emt 0:10:58]} Qb4 {[%emt 0:04:33]} 18. Qd2 {[%emt 0:08:41]} Ba5 {[%emt 0:01:45]} 19. Rg3 {[%emt 0:00:04]} Rc6 {[%emt 0:07:28]} 20. Rd3 {[%emt 0:02:29]} Ke7 {[%emt 0:08:29]} 21. Qe3 {[%emt 0:04:13]} Bb6 {[%emt 0:01:28]} 22. Qe2 {[%emt 0:01:33]} Ng6 {[%emt 0:02:49]} 23. Nxe6 {[%emt 0:02:39]} fxe6 {[%emt 0:00:27]} 24. Qd2 {[%emt 0:01:27]} Ba5 {[%emt 0:04:57]} 25. Rg3 {[%emt 0:00:25]} Nf4 {[%emt 0:05:10]} 26. Rxg7+ {[%emt 0:00:27]} Kf8 {[%emt 0:00:01]} 27. Rg3 {[%emt 0:00:27]} Nxe4 {[%emt 0:00:14]} 28. Nxe4 {[%emt 0:00:44]} Qxe4 {[%emt 0:00:01]} 29. c3 {[%emt 0:00:36]} d5 {[%emt 0:00:06]} 30. Re3 {[%emt 0:00:19]} Qf5 {[%emt 0:00:29]} 31. Bd3 {[%emt 0:00:34]} e4 {[%emt 0:01:50]} 32. Bc2 {[%emt 0:00:08]} Bb6 {[%emt 0:01:21]} 33. Rf3 {[%emt 0:00:57]} Ne2+ {[%emt 0:00:47]} 34. Qxe2 {[%emt 0:00:02]} Qxf3 {[%emt 0:00:03]} 35. Qf1 {[%emt 0:00:20]} Rh6 36. h4 Rxh4 37. c4 Rh2 38. Qg1 Qg2 39. Ba3+ Kf7 40. Qe1 Qxf2 41. Qc3 {[%emt 0:03:00]} d4 {[%emt 0:03:49]} 0-1

[Event "Belt and Road Women 2024"]
[Site "Yuecheng Shaoxing"]
[Date "2024.07.31"]
[Round "7.15"]
[White "Li, Xueyi"]
[Black "Hu, Jiani"]
[Result "1/2-1/2"]
[ECO "D30"]
[WhiteElo "2209"]
[BlackElo "2148"]
[Annotator "RC"]
[PlyCount "128"]
[EventDate "2024.08.01"]
[EventType "swiss"]
[EventCountry "CHN"]
[SourceTitle "playchess.com"]
[Source "ChessBase"]
[SourceQuality "1"]
[TimeControl "5400+30"]

1. d4 {[%emt 0:00:03]} d5 {[%emt 0:00:05]} 2. c4 {[%emt 0:00:04]} e6 {[%emt 0:00:03]} 3. Nf3 {[%emt 0:00:04]} c5 {[%emt 0:00:12]} 4. cxd5 {[%emt 0:00:13]} exd5 {[%emt 0:00:04]} 5. g3 {[%emt 0:00:04]} Nc6 {[%emt 0:00:25]} 6. Bg2 {[%emt 0:00:07]} Nf6 {[%emt 0:00:33]} 7. O-O {[%emt 0:00:26]} Be7 {[%emt 0:01:28]} 8. dxc5 {[%emt 0:00:28]} Bxc5 {[%emt 0:00:11]} 9. a3 {[%emt 0:00:05]} O-O {[%emt 0:01:18]} 10. b4 {[%emt 0:00:05]} Be7 {[%emt 0:00:35]} 11. Bb2 {[%emt 0:00:07]} Bf5 {[%emt 0:03:03]} 12. Nc3 {[%emt 0:03:55]} Rc8 {[%emt 0:03:47]} 13. Nd4 {[%emt 0:03:10]} Bg6 {[%emt 0:02:18]} 14. Bh3 {[%emt 0:12:54]} Rb8 {[%emt 0:02:21]} 15. Na4 {[%emt 0:02:31]} Ne4 {[%emt 0:05:18]} 16. Rc1 {[%emt 0:03:12]} Nxd4 {[%emt 0:06:14]} 17. Bxd4 {[%emt 0:01:04]} b6 {[%emt 0:01:00]} 18. Be5 {[%emt 0:06:59]} Ra8 {[%emt 0:06:54]} 19. Nb2 {[%emt 0:20:13]} Bf6 {[%emt 0:03:20]} 20. Nd3 {[%emt 0:06:06]} Ng5 {[%emt 0:07:01]} 21. Bg2 {[%emt 0:00:25]} Be4 {[%emt 0:00:59]} 22. Bxf6 {[%emt 0:04:49]} Qxf6 {[%emt 0:00:19]} 23. Nf4 {[%emt 0:01:02]} Bxg2 {[%emt 0:12:24]} 24. Kxg2 {[%emt 0:00:11]} Rfd8 {[%emt 0:00:52]} 25. Qd3 {[%emt 0:03:21]} d4 {[%emt 0:07:28]} 26. Rfd1 {[%emt 0:01:31]} Ne6 {[%emt 0:07:24]} 27. Nxe6 {[%emt 0:00:57]} fxe6 {[%emt 0:01:12]} 28. Qe4 {[%emt 0:00:49]} Rd5 {[%emt 0:07:16]} 29. Rc6 {[%emt 0:02:40]} Re8 {[%emt 0:04:40]} 30. Qxd5 {[%emt 0:00:52]} exd5 {[%emt 0:03:13]} 31. Rxf6 {[%emt 0:00:05]} gxf6 {[%emt 0:00:14]} 32. Kf1 {[%emt 0:04:30]} Re4 {[%emt 0:05:05]} 33. Rc1 {[%emt 0:01:09]} a5 {[%emt 0:05:16]} 34. bxa5 {[%emt 0:02:06]} bxa5 {[%emt 0:00:06]} 35. Rc5 {[%emt 0:01:48]} d3 {[%emt 0:00:41]} 36. exd3 {[%emt 0:00:06]} Ra4 {[%emt 0:00:13]} 37. Rc3 {[%emt 0:02:50]} Kf7 {[%emt 0:00:21]} 38. Ke2 {[%emt 0:00:13]} Ke6 {[%emt 0:00:11]} 39. h4 {[%emt 0:02:23]} h5 {[%emt 0:01:15]} 40. Rb3 {[%emt 0:02:16]} Ke5 {[%emt 0:00:58]} 41. Ke3 {[%emt 0:00:38]} f5 {[%emt 0:01:36]} 42. Kf3 {[%emt 0:03:37]} Kd6 {[%emt 0:00:54]} 43. Ke3 {[%emt 0:01:56]} Ke5 {[%emt 0:00:31]} 44. f3 {[%emt 0:00:32]} f4+ {[%emt 0:01:05]} 45. gxf4+ {[%emt 0:00:20]} Rxf4 {[%emt 0:00:12]} 46. Rb5 {[%emt 0:00:13]} Ra4 {[%emt 0:00:36]} 47. f4+ {[%emt 0:00:03]} Kd6 {[%emt 0:00:23]} 48. Rb6+ {[%emt 0:00:10]} Kc5 {[%emt 0:00:36]} 49. Rb3 {[%emt 0:00:49]} Kd6 {[%emt 0:00:27]} 50. Kf3 {[%emt 0:00:03]} Ke6 {[%emt 0:00:20]} 51. Rb6+ {[%emt 0:01:01]} Kf5 {[%emt 0:00:34]} 52. Ke3 {[%emt 0:00:51]} Rxa3 {[%emt 0:01:12]} 53. Rd6 {[%emt 0:00:06]} Kg4 {[%emt 0:00:31]} 54. Rxd5 {[%emt 0:01:19]} Kxh4 {[%emt 0:00:11]} 55. Rg5 {[%emt 0:00:03]} Ra1 {[%emt 0:00:31]} 56. Rg2 {[%emt 0:02:06]} a4 {[%emt 0:00:42]} 57. f5 {[%emt 0:00:18]} a3 {[%emt 0:00:25]} 58. f6 {[%emt 0:00:37]} Rf1 {[%emt 0:01:20]} 59. Rf2 {[%emt 0:02:05]} Rxf2 {[%emt 0:00:10]} 60. Kxf2 {[%emt 0:00:03]} a2 {[%emt 0:00:04]} 61. f7 {[%emt 0:00:03]} a1=Q {[%emt 0:00:07]} 62. f8=Q {[%emt 0:00:03]} Qd4+ {[%emt 0:00:32]} 63. Kg2 {[%emt 0:00:15]} Qg4+ {[%emt 0:00:59]} 64. Kf1 {[%emt 0:00:22]} Qd1+ {[%emt 0:00:10]} 1/2-1/2

[Event "Belt and Road Women 2024"]
[Site "Yuecheng Shaoxing"]
[Date "2024.07.31"]
[Round "7.16"]
[White "Wang, Chuqiao"]
[Black "Velikic, Adela"]
[Result "1-0"]
[ECO "D38"]
[WhiteElo "2278"]
[BlackElo "2290"]
[Annotator "RC"]
[PlyCount "97"]
[EventDate "2024.08.01"]
[EventType "swiss"]
[EventCountry "CHN"]
[SourceTitle "playchess.com"]
[Source "ChessBase"]
[SourceQuality "1"]
[TimeControl "5400+30"]

1. d4 {[%emt 0:00:04]} Nf6 {[%emt 0:00:08]} 2. c4 {[%emt 0:00:22]} e6 {[%emt 0:00:06]} 3. Nc3 {[%emt 0:03:40]} Bb4 {[%emt 0:00:10]} 4. Nf3 {[%emt 0:01:01]} d5 {[%emt 0:00:15]} 5. Qb3 {[%emt 0:01:36]} c5 {[%emt 0:04:24]} 6. Bg5 {[%emt 0:01:57]} h6 {[%emt 0:02:30]} 7. Bxf6 {[%emt 0:02:28]} Qxf6 {[%emt 0:00:10]} 8. e3 {[%emt 0:01:13]} O-O {[%emt 0:01:25]} 9. cxd5 {[%emt 0:03:58]} exd5 {[%emt 0:00:14]} 10. a3 {[%emt 0:05:03]} Bxc3+ {[%emt 0:05:38]} 11. Qxc3 {[%emt 0:00:07]} c4 {[%emt 0:01:02]} 12. b3 {[%emt 0:01:41]} Be6 {[%emt 0:02:42]} 13. bxc4 {[%emt 0:08:23]} dxc4 {[%emt 0:01:29]} 14. Nd2 {[%emt 0:05:14]} Rc8 {[%emt 0:05:07]} 15. Be2 {[%emt 0:09:43]} Nd7 {[%emt 0:17:10]} 16. Bf3 {[%emt 0:08:42]} Rab8 {[%emt 0:10:21]} 17. O-O {[%emt 0:02:45]} b5 {[%emt 0:07:53]} 18. Qb4 {[%emt 0:12:09]} Qd8 {[%emt 0:04:38]} 19. e4 {[%emt 0:24:10]} a5 {[%emt 0:04:42]} 20. Qb1 {[%emt 0:00:09]} f6 {[%emt 0:07:51]} 21. d5 {[%emt 0:05:18]} Ne5 {[%emt 0:02:05]} 22. Bh5 {[%emt 0:00:58]} Bg4 {[%emt 0:03:40]} 23. Bxg4 {[%emt 0:00:12]} Nxg4 {[%emt 0:00:03]} 24. Nf3 {[%emt 0:00:10]} Qb6 {[%emt 0:02:57]} 25. Qb2 {[%emt 0:00:58]} b4 {[%emt 0:07:36]} 26. axb4 {[%emt 0:00:10]} axb4 {[%emt 0:00:05]} 27. h3 {[%emt 0:00:41]} c3 {[%emt 0:02:19]} 28. Qb3 {[%emt 0:00:06]} Ne5 {[%emt 0:00:25]} 29. d6+ {[%emt 0:00:33]} Kh8 {[%emt 0:00:35]} 30. Nxe5 fxe5 31. d7 {[%emt 0:01:09]} Rf8 {[%emt 0:02:01]} 32. Rad1 {[%emt 0:00:53]} Ra8 {[%emt 0:04:51]} 33. Qc4 {[%emt 0:00:31]} Rad8 {[%emt 0:01:27]} 34. Rd5 {[%emt 0:00:21]} Rb8 {[%emt 0:00:31]} 35. Qb3 {[%emt 0:00:21]} Qa7 {[%emt 0:00:47]} 36. Kh2 {[%emt 0:00:40]} Rfd8 {[%emt 0:00:17]} 37. Rfd1 {[%emt 0:00:57]} Qxf2 {[%emt 0:00:18]} 38. Qc4 {[%emt 0:00:07]} Qe3 {[%emt 0:00:57]} 39. R5d3 {[%emt 0:00:51]} Qe2 {[%emt 0:00:32]} 40. Qc6 {[%emt 0:00:28]} Qf2 {[%emt 0:00:30]} 41. Rd6 {[%emt 0:00:33]} Qf4+ {[%emt 0:00:27]} 42. Kh1 {[%emt 0:00:08]} Qe3 {[%emt 0:00:33]} 43. R1d3 {[%emt 0:00:38]} Qf2 {[%emt 0:00:29]} 44. Rf3 {[%emt 0:00:21]} Qe1+ {[%emt 0:00:25]} 45. Kh2 {[%emt 0:00:02]} b3 {[%emt 0:00:24]} 46. Rxh6+ {[%emt 0:00:14]} gxh6 {[%emt 0:00:14]} 47. Qxh6+ {[%emt 0:00:04]} Kg8 {[%emt 0:00:03]} 48. Qg6+ {[%emt 0:00:13]} Kh8 {[%emt 0:00:02]} 49. Rf7 {[%emt 0:00:07]} 1-0

[Event "Belt and Road Women 2024"]
[Site "Yuecheng Shaoxing"]
[Date "2024.08.01"]
[Round "8.1"]
[White "Wagner, Dinara"]
[Black "Tan, Zhongyi"]
[Result "1/2-1/2"]
[ECO "D37"]
[WhiteElo "2454"]
[BlackElo "2540"]
[Annotator "TA"]
[PlyCount "205"]
[EventDate "2024.08.01"]
[EventType "swiss"]
[EventCountry "CHN"]
[SourceTitle "playchess.com"]
[Source "ChessBase"]
[SourceQuality "1"]
[TimeControl "5400+30"]

{[%evp 125,205,0,238,235,321,311,265,268,274,0,0,0,0,0,34,20,16,39,32,0,346,350,369,337,388,341,349,325,418,351,360,252,340,256,252,237,239,232,145,112,77,93,302,302,309,8,8,8,8,8,8,8,8,0,0,0,0,0,8,8,8,0,0,0,0,0,0,0,0,0,0,0,0,0,0,0,0,0,0,0,0,0]} 1. d4 {[%emt 0:00:10]} Nf6 {[%emt 0:00:09]} 2. c4 {[%emt 0:00:07]} e6 {[%emt 0:00:10]} 3. Nf3 {[%emt 0:00:28]} a6 {[%emt 0:00:51]} 4. Nc3 {[%emt 0:00:22]} d5 {[%emt 0:00:06]} 5. cxd5 {[%emt 0:00:03]} exd5 {[%emt 0:00:05]} 6. Bg5 {[%emt 0:00:08] D37: Queen's Gambit Declined: 5 Bf4.} Be6 {[%emt 0:00:07]} 7. e3 {[%emt 0:00:08]} h6 {[%emt 0:00:14]} 8. Bf4 {[%emt 0:06:33]} c5 {[%emt 0:00:12]} 9. Bxb8 $146 {[%emt 0:08:16]} ({Predecessor:} 9. dxc5 Bxc5 10. Bd3 Nc6 11. h3 O-O 12. O-O d4 13. exd4 Nxd4 14. Rc1 Rc8 15. Be5 Nxf3+ 16. Qxf3 {½-½ Lin,Y (2408)-Lu,S (2615) CHN-ch Xinghua 2020 (4)}) 9... Rxb8 {[%emt 0:04:16]} 10. dxc5 {[%emt 0:00:14]} Bxc5 {[%emt 0:00:35]} 11. Bd3 {[%emt 0:00:40]} O-O {[%emt 0:05:38]} 12. O-O {[%emt 0:00:19]} g6 {[%emt 0:03:07]} 13. Ne2 {[%emt 0:19:52]} Bd6 {[%emt 0:01:10]} 14. Nfd4 {[%emt 0:05:45]} Bd7 {[%emt 0:02:21]} 15. Qb3 {[%emt 0:10:44]} Qa5 {[%emt 0:08:36]} 16. Nc3 {[%emt 0:04:18]} Rfe8 {[%emt 0:06:48]} 17. a3 {[%emt 0:03:52]} Kg7 {[%emt 0:01:58]} 18. Rad1 {[%emt 0:02:57]} Qc7 {[%emt 0:04:58]} 19. g3 {[%emt 0:01:22]} Rbd8 {[%emt 0:03:00]} 20. Be2 {[%emt 0:01:48]} Bh3 {[%emt 0:02:55]} 21. Rfe1 {[%emt 0:00:41]} Bc5 {[%emt 0:27:08]} 22. Bf1 {[%emt 0:08:03]} Bc8 {[%emt 0:03:49]} 23. Bg2 {[%emt 0:01:06]} Qe5 {[%emt 0:00:05]} 24. Nce2 {[%emt 0:04:46]} h5 {[%emt 0:00:08]} 25. Qc3 {[%emt 0:01:35]} Bd6 {[%emt 0:01:21]} 26. Nf3 {[%emt 0:00:56]} Qe7 {[%emt 0:02:17]} 27. Nf4 {[%emt 0:01:49]} Kg8 {[%emt 0:00:05]} 28. Qb3 {[%emt 0:01:59]} Bg4 {[%emt 0:01:31]} 29. Rd2 {[%emt 0:04:37]} h4 {[%emt 0:05:03]} 30. Rd4 {[%emt 0:01:44]} Bc5 {[%emt 0:07:27]} 31. Nxd5 {[%emt 0:01:00]} Rxd5 {[%emt 0:00:06]} 32. Rxg4 {[%emt 0:00:06]} hxg3 {[%emt 0:04:54]} 33. hxg3 {[%emt 0:00:02]} Red8 {[%emt 0:01:30]} 34. Rc4 {[%emt 0:00:58]} b5 {[%emt 0:00:03]} 35. Rcc1 {[%emt 0:00:23]} Ne4 {[%emt 0:00:06]} 36. Qc2 {[%emt 0:02:17]} Re8 {[%emt 0:02:29]} 37. Rcd1 {[%emt 0:01:35]} Rh5 {[%emt 0:00:59]} 38. Rd3 {[%emt 0:02:14]} Rf5 {[%emt 0:00:54]} 39. Re2 {[%emt 0:01:19]} Bd6 {[%emt 0:00:22]} 40. Rd1 {[%emt 0:01:18]} Rc5 {[%emt 0:01:20]} 41. Qd3 {[%emt 0:00:05]} Bb8 {[%emt 0:00:34]} 42. Nd4 {[%emt 0:00:32]} Qe5 {[%emt 0:00:37]} 43. Rc2 {[%emt 0:01:15]} Rxc2 {[%emt 0:00:06]} 44. Qxc2 {[%emt 0:00:03]} Nf6 {[%emt 0:00:48]} 45. Nc6 {[%emt 0:00:14]} Qh5 {[%emt 0:00:12]} 46. Nxb8 {[%emt 0:01:30]} Rxb8 {[%emt 0:00:04]} 47. Rd6 {[%emt 0:00:02]} Ng4 {[%emt 0:00:07]} 48. Rxa6 {[%emt 0:01:56]} Rd8 {[%emt 0:00:08]} 49. Rc6 {[%emt 0:00:15]} Kg7 {[%emt 0:01:34]} 50. Rc8 {[%emt 0:01:15]} Rd6 {[%emt 0:00:54]} 51. Rc6 {[%emt 0:00:20]} Rd8 {[%emt 0:00:41]} 52. Qe2 {[%emt 0:00:23]} Qh2+ {[%emt 0:00:39]} 53. Kf1 {[%emt 0:00:02]} Ne5 {[%emt 0:00:10]} 54. Rc1 {[%emt 0:00:25]} Rd6 {[%emt 0:00:51]} 55. Qxb5 {[%emt 0:01:11]} Ng4 {[%emt 0:00:29]} 56. Qe2 {[%emt 0:00:32]} Qh5 {[%emt 0:00:06]} 57. Bf3 {[%emt 0:01:44]} Rf6 {[%emt 0:00:41]} 58. Ke1 {[%emt 0:00:08]} Qa5+ {[%emt 0:00:07]} 59. Rc3 {[%emt 0:00:21]} Ne5 {[%emt 0:00:17]} 60. Be4 {[%emt 0:00:14]} Qa4 {[%emt 0:00:37]} 61. Qc2 {[%emt 0:00:14]} Qd7 {[%emt 0:00:19]} 62. Rc7 {[%emt 0:01:09]} Qg4 {[%emt 0:00:38]} 63. Rc3 $2 {[%emt 0:00:58]} (63. a4 $18) 63... Qh3 $2 {[%emt 0:00:41]} (63... Qd7 $1 $11 {and Black stays safe.} 64. Bg2 g5) 64. Qe2 $18 {[%emt 0:00:29]} Qh2 {[%emt 0:00:48]} 65. f4 {[%emt 0:00:33]} Qxg3+ {[%emt 0:00:12]} 66. Qf2 {[%emt 0:00:13]} Qg4 {[%emt 0:00:09]} 67. Rc5 $2 {[%emt 0:00:42]} ({Better is} 67. Qg2 $18 Qh4+ 68. Kd1) 67... Rd6 $1 $11 {[%emt 0:00:09]} 68. Rc1 $1 {[%emt 0:00:11]} (68. Rxe5 $2 Qd1#) 68... Nc4 {[%emt 0:01:46]} 69. Bf3 {[%emt 0:00:34]} (69. Rxc4 $2 Qd1#) 69... Qe6 {[%emt 0:00:04]} (69... Qf5 $5) 70. Rc3 {[%emt 0:00:41]} (70. e4 {simplifies} Nd2 71. Rd1 Nxf3+ 72. Qxf3 Rc6 73. Kf2) 70... Rd2 {[%emt 0:00:47]} (70... Nd2 {simplifies} 71. Rc2 Nxf3+ 72. Qxf3 Qa2) 71. Be2 {[%emt 0:00:36]} Nd6 $1 {[%emt 0:00:08]} 72. f5 {[%emt 0:00:36]} (72. Kxd2 Ne4+ 73. Ke1 Nxf2 74. Kxf2 g5 $15) 72... Qd5 $2 {[%emt 0:00:13][%mdl 8192]} (72... Qa2 $1 $11 73. Qf3 (73. Kxd2 $2 {is the wrong capture.} Ne4+ 74. Kc2 Nxf2 $19) (73. f6+ Kg8 $11) 73... Qxb2 74. f6+ Kg8 75. Qa8+ Kh7 76. Qh1+ Kg8 77. Qa8+ Kh7 78. Qh1+ Kg8 79. Qa8+) 73. f6+ $1 $18 {[%emt 0:00:09]} Kg8 {[%emt 0:00:07]} 74. Qf3 {[%emt 0:00:18]} Qxf3 {[%emt 0:01:08]} 75. Bxf3 {[%emt 0:00:02]} Rxb2 {[%emt 0:00:06]} 76. Bd5 {[%emt 0:00:04]} g5 {[%emt 0:00:55]} 77. Rc6 {[%emt 0:00:02]} Nf5 {[%emt 0:01:01]} 78. Rc8+ {[%emt 0:00:16]} Kh7 {[%emt 0:00:05]} 79. Bxf7 {[%emt 0:00:42]} Nd6 {[%emt 0:00:33]} 80. Bg8+ {[%emt 0:00:28]} Kg6 {[%emt 0:00:04] [#]} 81. Rc6 $1 {[%emt 0:00:56]} Nf7 {[%emt 0:00:25]} 82. Rc7 {[%emt 0:01:51]} Nh6 {[%emt 0:00:04]} 83. f7 {[%emt 0:00:01]} Kg7 $2 {[%emt 0:00:04] [#]} (83... Rb8 $16) 84. a4 $1 $18 {[%emt 0:01:00]} g4 {[%emt 0:01:10]} 85. Rc5 $2 {[%emt 0:00:38]} ({Not} 85. Rc4 g3 86. Rf4 Kf8 $11) (85. Rc8 $18 Nxf7 86. Bxf7 Kxf7 87. a5 Rb1+ 88. Kf2 Rb2+ 89. Kg3) 85... Nxf7 $11 {[%emt 0:00:42]} 86. Bxf7 {[%emt 0:00:05]} Kxf7 {[%emt 0:00:03]} 87. Rg5 {[%emt 0:00:55]} Rb4 {[%emt 0:00:07]} 88. a5 {[%emt 0:00:10]} Kf6 {[%emt 0:00:19]} 89. Rc5 {[%emt 0:00:04]} Rb2 {[%emt 0:00:11]} 90. Kf1 {[%emt 0:00:36]} Ra2 {[%emt 0:00:12]} 91. Rb5 {[%emt 0:00:11]} Ke6 {[%emt 0:00:46]} 92. Rg5 {[%emt 0:01:18]} Kf6 {[%emt 0:00:06]} 93. Rb5 {[%emt 0:00:04]} (93. Rxg4 {simplifies} Rxa5 94. Kf2 Kf7 95. Rf4+) 93... Ke6 {[%emt 0:00:05]} 94. Kg1 {[%emt 0:00:29]} Kf6 {[%emt 0:00:10]} 95. e4 {[%emt 0:00:53]} Ke6 {[%emt 0:00:11]} 96. Rc5 {[%emt 0:00:35]} Kf6 {[%emt 0:00:10]} 97. Rh5 {[%emt 0:00:12]} Kg6 {[%emt 0:01:54]} 98. Rf5 {[%emt 0:00:06]} Ra4 {[%emt 0:00:14]} 99. Re5 {[%emt 0:00:59]} Kf6 {[%emt 0:00:07]} 100. Rf5+ {[%emt 0:00:37]} Ke6 {[%emt 0:00:13]} 101. Rg5 {[%emt 0:00:36]} Rxe4 {[%emt 0:00:11]} 102. a6 {[%emt 0:00:05]} Ra4 {[%emt 0:00:08]} 103. a7 {[%emt 0:00:09]} 1/2-1/2